bitfinex-derivatives/quotes_ETHF0:USTF0_20260120
["timestamp","ask_amount","ask_price","bid_price","bid_amount"]
[1768926603387,0.16531,3027.5,3026.2,3.50087657]
[1768926603689,0.16531,3027.5,3026.0,1.14735169]
[1768926603892,0.16531,3027.5,3026.6,1.14735169]
[1768926604387,0.16531,3027.5,3026.1,1.14735169]
[1768926605183,3.51908121,3027.8,3026.2,3.50087657]
[1768926605490,3.68437121,3027.8,3026.2,3.50087657]
[1768926605686,3.51908121,3027.6,3025.8,7.01922826]
[1768926605985,0.1653,3027.7,3026.2,3.50087657]
[1768926606182,0.1653,3027.7,3026.4,1.14735169]
[1768926606688,0.00399017,3028.0,3027.0,1.14735169]
[1768926607590,0.00399017,3028.0,3026.8,3.50087657]
[1768926607985,0.00399017,3028.0,3026.4,5.42822826]
[1768926608292,0.00399017,3028.0,3026.5,3.50087657]
[1768926608995,0.00399017,3028.0,3026.7,1.14735169]
[1768926609693,0.00399017,3028.0,3026.7,4.64822826]
[1768926610588,0.00399017,3028.0,3026.7,1.14735169]
[1768926610793,0.00399017,3028.0,3026.4,5.42822826]
[1768926611692,0.00399017,3028.0,3026.7,1.14735169]
[1768926612184,0.16531,3027.5,3026.0,4.13820204]
[1768926612389,0.16531,3027.5,3025.8,4.64822826]
[1768926613088,0.16532,3027.3,3025.8,4.64822826]
[1768926613384,3.68440121,3027.3,3025.8,4.64822826]
[1768926613789,0.48103367,3027.2,3025.8,4.64822826]
[1768926613993,0.16533,3027.0,3025.8,3.50087657]
[1768926614290,1.15134186,3028.0,3025.2,1.15140357]
[1768926614291,4.00009122,3026.9,3025.2,1.15140357]
[1768926614497,5.14744291,3026.8,3025.2,0.00405188]
[1768926614794,0.48101001,3026.7,3025.2,0.00405188]
[1768926614992,0.48101001,3026.6,3025.2,0.00405188]
[1768926615195,0.48101001,3026.5,3025.2,0.00405188]
[1768926615494,0.48101001,3026.4,3025.2,1.15140357]
[1768926615696,0.48101001,3026.3,3025.2,1.15140357]
[1768926615897,0.48101001,3026.2,3025.2,1.15140357]
[1768926616097,0.48101001,3026.1,3025.2,1.15140357]
[1768926616298,0.48031065,3026.0,3025.2,0.00405188]
[1768926616497,0.48031065,3025.9,3025.2,0.00405188]
[1768926616794,0.16538,3026.2,3025.2,0.00405188]
[1768926617097,0.48029288,3026.1,3025.2,0.00405188]
[1768926617293,0.48029288,3026.0,3025.2,0.00405188]
[1768926617495,0.48029288,3025.9,3025.2,0.00405188]
[1768926617802,0.4799535,3025.8,3024.6,3.68397483]
[1768926618094,0.16539,3026.0,3024.6,3.68397483]
[1768926618297,0.47973299,3025.9,3024.6,3.68397483]
[1768926618494,0.47973299,3025.8,3024.6,3.68397483]
[1768926618791,0.00284035,3025.8,3024.6,3.68730843]
[1768926621284,0.16541,3025.6,3024.6,0.0033336]
[1768926621485,0.47939488,3025.5,3024.6,0.0033336]
[1768926621695,0.16541,3025.6,3024.6,0.0033336]
[1768926621885,0.47941904,3025.5,3024.6,0.0033336]
[1768926622090,0.16541,3025.6,3024.6,3.68730843]
[1768926622297,0.00284035,3025.8,3024.6,3.68730843]
[1768926622596,0.47694546,3025.7,3024.6,3.68730843]
[1768926622796,0.00284035,3025.8,3024.6,3.68730843]
[1768926622996,0.47700616,3025.7,3024.6,3.68730843]
[1768926623198,0.00284035,3025.8,3024.6,3.68730843]
[1768926623397,0.47695433,3025.7,3024.6,3.68730843]
[1768926623595,0.00284035,3025.8,3024.6,3.68730843]
[1768926623797,0.47699316,3025.7,3024.6,3.68730843]
[1768926623991,0.00284035,3025.8,3024.6,3.68730843]
[1768926624194,0.47699603,3025.7,3024.6,3.68730843]
[1768926624397,0.00284035,3025.8,3024.6,3.68730843]
[1768926624598,0.476917,3025.7,3024.6,3.68730843]
[1768926624798,0.00284035,3025.8,3024.6,3.68730843]
[1768926624994,0.47693482,3025.7,3024.6,3.68730843]
[1768926625195,0.00284035,3025.8,3024.6,3.68730843]
[1768926625401,0.47679016,3025.7,3024.6,3.68730843]
[1768926625595,0.00284035,3025.8,3024.6,3.68730843]
[1768926625800,0.47681334,3025.7,3024.6,3.68730843]
[1768926626005,0.47692441,3025.6,3024.6,0.0033336]
[1768926626198,0.16541,3025.7,3024.6,0.0033336]
[1768926626398,0.47680215,3025.6,3024.6,0.0033336]
[1768926626704,0.47677008,3025.5,3024.6,0.0033336]
[1768926627003,0.16541,3025.7,3024.6,0.0033336]
[1768926627207,0.47670605,3025.6,3024.6,0.0033336]
[1768926627404,0.16541,3025.7,3024.6,0.0033336]
[1768926627707,0.47663195,3025.6,3024.6,0.0033336]
[1768926628002,0.47663693,3025.5,3024.6,0.0033336]
[1768926628206,0.16541,3025.7,3024.6,0.0033336]
[1768926628505,0.4765843,3025.6,3024.6,0.0033336]
[1768926628697,0.16541,3025.7,3024.6,0.0033336]
[1768926628897,0.47655218,3025.6,3024.6,0.0033336]
[1768926629197,0.16541,3025.7,3024.6,0.0033336]
[1768926629402,0.47635808,3025.6,3024.6,0.0033336]
[1768926629597,0.00284035,3025.8,3024.6,0.0033336]
[1768926629598,0.16542,3025.5,3024.6,0.0033336]
[1768926630099,0.64167786,3025.4,3024.6,0.0033336]
[1768926630297,0.16542,3025.4,3024.6,0.0033336]
[1768926630693,0.47617424,3025.3,3024.6,0.0033336]
[1768926630901,0.64160424,3025.2,3023.8,3.68397483]
[1768926631204,0.47601087,3025.1,3023.8,3.68397483]
[1768926631406,0.16543,3025.2,3023.8,3.68397483]
[1768926631704,0.47594629,3025.1,3023.8,3.68397483]
[1768926631904,0.16543,3025.2,3023.8,3.68725379]
[1768926632104,0.47596623,3025.1,3023.8,0.00327896]
[1768926632296,0.47596623,3025.0,3023.8,0.00327896]
[1768926632498,0.47554781,3024.9,3023.8,0.00327896]
[1768926632693,3.43780836,3025.2,3023.8,0.00327896]
[1768926632902,3.91331806,3025.1,3023.8,0.00327896]
[1768926633098,0.4755097,3025.0,3023.8,0.00327896]
[1768926633304,0.6409497,3025.0,3023.8,0.00327896]
[1768926633503,0.4755097,3024.9,3023.8,0.00327896]
[1768926633704,3.60325836,3024.9,3023.8,0.00327896]
[1768926633898,0.16546,3024.7,3023.8,0.00327896]
[1768926634094,0.16547,3024.5,3023.8,0.00327896]
[1768926634306,0.16547,3024.5,3023.0,3.68397483]
[1768926635304,0.16547,3024.5,3023.0,3.6879836]
[1768926636910,0.16547,3024.5,3023.3,1.14976039]
[1768926637512,0.16547,3024.5,3023.6,1.14976039]
[1768926637903,0.16543,3025.2,3023.9,1.14976039]
[1768926638104,0.47508822,3025.1,3024.2,1.14976039]
[1768926638305,0.1654,3025.7,3024.5,1.14976039]
[1768926638506,0.47522783,3025.6,3024.5,1.14976039]
[1768926638705,0.1654,3025.7,3024.5,1.14976039]
[1768926638901,0.47526949,3025.6,3024.5,3.68397483]
[1768926639103,0.1654,3025.7,3024.5,3.68397483]
[1768926639305,0.47564299,3025.6,3024.5,3.68397483]
[1768926639611,0.1654,3025.7,3024.5,3.68397483]
[1768926639815,0.47566631,3025.6,3024.5,3.68397483]
[1768926640112,0.1654,3025.7,3024.5,3.68397483]
[1768926640113,0.47607677,3025.5,3024.5,3.68397483]
[1768926640315,0.1654,3025.7,3024.5,3.68397483]
[1768926640613,0.47607038,3025.6,3024.5,3.68397483]
[1768926640808,0.16542,3025.4,3024.0,3.68397483]
[1768926641009,0.47601547,3025.3,3024.0,3.68397483]
[1768926641213,0.47642191,3025.2,3024.0,3.68397483]
[1768926641411,0.16542,3025.4,3024.0,3.68397483]
[1768926641611,0.47642549,3025.3,3024.0,3.68397483]
[1768926641913,0.16542,3025.4,3024.0,3.68397483]
[1768926642110,0.47644388,3025.3,3024.0,3.68397483]
[1768926642311,0.47644388,3025.2,3024.0,3.68397483]
[1768926642510,0.00284035,3025.8,3024.0,3.68397483]
[1768926642711,0.47698883,3025.7,3024.0,3.68397483]
[1768926643013,0.47698883,3025.6,3024.0,3.68397483]
[1768926643219,0.47698883,3025.5,3024.0,3.68397483]
[1768926643514,0.47698883,3025.4,3024.0,3.68397483]
[1768926643816,0.47698883,3025.3,3024.1,2.363]
[1768926644013,0.47698883,3025.2,3024.2,3.47832418]
[1768926644311,0.16541,3025.6,3024.2,3.47832418]
[1768926645313,0.00284035,3025.8,3024.5,1.77274859]
[1768926645612,0.00284035,3025.8,3024.6,3.5301166]
[1768926646007,3.38069308,3027.0,3025.0,3.5301166]
[1768926646207,0.16535,3026.8,3025.0,3.5301166]
[1768926647115,3.54967165,3026.8,3025.0,3.5301166]
[1768926648115,3.38432165,3026.8,3025.0,3.5301166]
[1768926649214,3.38432165,3026.8,3024.2,0.78]
[1768926649215,3.38069308,3026.2,3024.2,4.3101166]
[1768926649403,3.38069308,3026.2,3024.2,3.5301166]
[1768926649806,3.54607308,3026.2,3024.2,3.5301166]
[1768926653918,3.54607308,3026.1,3024.2,3.5301166]
[1768926654328,3.38069308,3025.9,3024.2,3.5301166]
[1768926654724,3.38069308,3025.9,3024.2,4.3101166]
[1768926654915,3.54608308,3025.9,3024.2,4.3101166]
[1768926655922,3.38069308,3025.8,3024.2,4.3101166]
[1768926656310,3.38069308,3025.5,3024.2,0.78]
[1768926656514,3.38069308,3025.4,3023.4,4.3101166]
[1768926656716,3.38069308,3025.4,3023.5,4.3101166]
[1768926657621,0.16544,3025.0,3023.5,4.3101166]
[1768926658211,3.38069308,3025.4,3023.5,4.3101166]
[1768926658416,0.16547,3024.6,3023.5,0.78]
[1768926658619,0.16921414,3024.6,3023.3,1.77274859]
[1768926659325,0.16547,3024.5,3023.1,4.3101166]
[1768926661922,0.00374414,3024.6,3023.1,4.3101166]
[1768926661923,0.00374414,3024.6,3023.1,3.5301166]
[1768926662129,0.16549,3024.2,3023.1,3.5301166]
[1768926664225,0.16549,3024.1,3023.0,0.00400877]
[1768926665940,3.54618308,3024.1,3023.0,0.00400877]
[1768926666239,3.54619308,3024.0,3023.0,0.00400877]
[1768926668342,0.00374414,3024.6,3023.0,0.00400877]
[1768926668343,3.38069308,3024.4,3023.0,0.00400877]
[1768926668937,3.54616308,3024.4,3023.0,0.00400877]
[1768926669244,3.54617308,3024.3,3023.0,0.00400877]
[1768926670944,3.54618308,3024.2,3023.0,0.00400877]
[1768926671144,0.16549,3024.1,3023.0,0.00400877]
[1768926671443,3.54618308,3024.1,3023.0,0.00400877]
[1768926671843,3.54619308,3024.0,3023.0,0.00400877]
[1768926673443,0.1655,3023.9,3023.0,0.00400877]
[1768926673837,3.38069308,3023.8,3022.0,0.78]
[1768926674037,3.38069308,3023.1,3021.6,0.82029451]
[1768926674439,0.16556,3022.8,3021.6,4.35041111]
[1768926675042,0.16556,3022.8,3021.6,4.35451803]
[1768926675541,0.26816401,3024.4,3021.6,6.12726662]
[1768926675542,0.16553,3023.4,3021.6,6.12726662]
[1768926675740,0.16553,3023.4,3021.7,3.68334909]
[1768926675939,0.16554,3023.3,3021.7,3.68334909]
[1768926676236,0.16555,3023.0,3021.6,0.82440143]
[1768926676442,3.62732576,3023.0,3021.6,0.82440143]
[1768926676846,3.46177576,3022.8,3021.6,0.82440143]
[1768926677145,3.46177576,3022.5,3021.6,0.82440143]
[1768926677440,0.1656,3022.1,3021.6,0.82440143]
[1768926677639,0.16916598,3022.1,3021.6,0.82440143]
[1768926678141,0.16916598,3022.1,3019.9,0.25779114]
[1768926678142,3.62739576,3021.8,3019.9,3.68334909]
[1768926678341,0.00356598,3022.1,3020.0,3.68334909]
[1768926678550,0.00356598,3022.1,3019.9,1.77274859]
[1768926678551,0.00356598,3022.1,3020.8,1.77274859]
[1768926678941,0.00356598,3022.1,3020.9,3.68334909]
[1768926679141,0.00356598,3022.1,3020.9,3.68573877]
[1768926679440,0.00356598,3022.1,3020.9,0.00238968]
[1768926679643,3.63094174,3022.1,3020.9,0.00238968]
[1768926679849,0.16561,3022.0,3020.9,0.00238968]
[1768926680052,3.62738576,3022.0,3020.9,0.00238968]
[1768926680449,3.62739576,3021.8,3020.9,0.00238968]
[1768926681144,3.62739576,3021.8,3019.6,1.77274859]
[1768926681145,0.16562,3021.7,3019.6,1.77274859]
[1768926681348,3.62740576,3021.6,3019.6,3.68334909]
[1768926681950,3.62740576,3021.6,3019.9,1.77274859]
[1768926682149,0.16563,3021.6,3020.3,1.77274859]
[1768926682651,0.16565,3021.2,3019.9,0.00404354]
[1768926683637,0.00356598,3022.1,3019.9,0.00404354]
[1768926683638,3.46177576,3021.1,3019.9,0.00404354]
[1768926683939,0.16565,3021.3,3019.9,1.77679213]
[1768926684244,3.46177576,3021.6,3020.0,3.68334909]
[1768926685549,0.16563,3021.5,3020.0,3.68334909]
[1768926686652,0.16563,3021.5,3020.3,5.45609768]
[1768926686851,0.00356598,3022.1,3020.7,1.77274859]
[1768926687148,0.00356598,3022.1,3021.1,5.45609768]
[1768926688253,3.72432081,3023.0,3021.5,1.77274859]
[1768926688750,3.72432081,3023.0,3021.2,3.68334909]
[1768926689451,3.72851962,3023.0,3021.2,3.68334909]
[1768926689646,0.16557,3022.6,3021.2,3.68334909]
[1768926689953,3.46177576,3022.3,3020.3,5.45609768]
[1768926690249,3.62736576,3022.3,3020.4,3.68334909]
[1768926690447,3.46177576,3022.3,3020.4,3.68334909]
[1768926690647,0.16562,3021.8,3020.4,3.68334909]
[1768926690949,0.16562,3021.8,3020.0,5.45609768]
[1768926691155,3.62739576,3021.8,3020.0,5.45609768]
[1768926691354,1.77274859,3022.2,3020.0,3.68334909]
[1768926691355,0.16563,3021.5,3020.0,3.68334909]
[1768926692155,1.93834859,3022.2,3020.1,3.68334909]
[1768926692349,3.62737576,3022.2,3020.5,3.68334909]
[1768926692659,0.1656,3022.2,3020.9,3.68334909]
[1768926693047,0.16561,3022.0,3020.4,3.68334909]
[1768926693248,0.16561,3021.9,3020.4,3.68334909]
[1768926693544,5.23452435,3021.8,3019.9,3.68739263]
[1768926693860,3.46177576,3021.7,3019.9,3.68739263]
[1768926694055,0.16566,3021.1,3019.9,3.68739263]
[1768926694749,0.16562,3021.7,3019.9,3.68739263]
[1768926694949,0.16562,3021.7,3020.2,3.68334909]
[1768926695448,0.16559,3022.4,3020.6,3.68334909]
[1768926695847,0.16559,3022.4,3020.9,1.77274859]
[1768926696457,3.46177576,3022.5,3020.6,3.68334909]
[1768926696948,0.16561,3021.9,3020.6,3.68334909]
[1768926697148,0.16562,3021.8,3020.1,5.45609768]
[1768926697354,0.16562,3021.8,3020.2,3.68334909]
[1768926698559,3.46177576,3022.6,3020.6,3.68334909]
[1768926699056,0.1656,3022.2,3020.6,3.68334909]
[1768926699455,3.46177576,3022.6,3020.6,3.68334909]
[1768926699654,0.16562,3021.7,3020.1,5.45609768]
[1768926699861,0.16563,3021.6,3020.1,5.45609768]
[1768926700157,0.16563,3021.5,3020.1,3.68334909]
[1768926701053,0.16563,3021.5,3020.1,5.45609768]
[1768926701251,0.16563,3021.5,3020.2,3.68334909]
[1768926702460,3.46177576,3022.0,3020.2,3.68334909]
[1768926703251,0.16564,3021.4,3020.2,3.68334909]
[1768926704159,3.46177576,3022.0,3020.6,3.44559996]
[1768926704160,0.16561,3022.0,3020.6,3.44559996]
[1768926707964,3.66651115,3023.0,3020.6,3.61127996]
[1768926708654,0.16559,3022.4,3020.7,5.9084407]
[1768926708861,0.16559,3022.4,3020.8,3.5614407]
[1768926709049,0.16556,3022.8,3020.8,3.7271107]
[1768926709253,3.4039661,3023.0,3020.8,3.7271107]
[1768926709254,0.16557,3022.7,3020.8,3.7271107]
[1768926710665,0.00419881,3023.0,3021.1,5.3379508]
[1768926710960,0.00419881,3023.0,3021.2,3.5614407]
[1768926711461,0.00419881,3023.0,3021.4,3.5614407]
[1768926712363,0.00419881,3023.0,3021.4,3.7270807]
[1768926712551,0.00419881,3023.0,3021.6,3.5614407]
[1768926712752,3.56524729,3024.3,3022.3,3.5614407]
[1768926712961,0.16548,3024.3,3022.5,3.5614407]
[1768926713264,3.39976729,3024.8,3022.5,3.7270207]
[1768926713662,0.16548,3024.4,3022.5,3.56434738]
[1768926714060,3.39976729,3023.8,3022.5,0.00290668]
[1768926714564,0.16547,3024.5,3022.5,3.56434738]
[1768926714767,0.00296026,3024.8,3022.5,3.56434738]
[1768926715062,0.00296026,3024.8,3022.8,3.5614407]
[1768926715766,0.16841026,3024.8,3022.8,3.5614407]
[1768926715956,0.16546,3024.6,3022.8,3.5614407]
[1768926716157,3.56523729,3024.5,3022.8,3.5614407]
[1768926716360,3.56524729,3024.4,3022.5,0.00290668]
[1768926716657,3.56524729,3024.4,3022.5,3.56434738]
[1768926719168,3.56524729,3024.3,3022.5,3.56434738]
[1768926719372,3.39976729,3024.1,3022.5,0.00290668]
[1768926719571,3.56525729,3024.1,3022.5,0.00290668]
[1768926720369,0.00496303,3023.6,3022.5,0.00290668]
[1768926723274,3.56529729,3023.4,3022.5,0.00290668]
[1768926727276,0.16554,3023.2,3022.5,0.00290668]
[1768926727875,0.16554,3023.2,3021.5,3.5614407]
[1768926728570,0.16555,3023.1,3021.5,3.5614407]
[1768926728871,0.16555,3023.1,3021.5,3.5641396]
[1768926729481,0.16552,3023.5,3021.5,3.5641396]
[1768926729878,0.16553,3023.4,3021.5,3.5641396]
[1768926731078,3.40473032,3023.6,3021.5,3.5641396]
[1768926731475,0.16555,3023.1,3021.5,3.5641396]
[1768926731878,0.16555,3023.0,3021.5,3.5641396]
[1768926732179,0.16556,3022.9,3021.5,3.5641396]
[1768926732778,0.16557,3022.6,3021.5,0.0026989]
[1768926732979,0.16955401,3022.6,3021.5,0.0026989]
[1768926735383,0.16556,3023.0,3021.5,3.41592805]
[1768926735775,0.16558,3022.5,3021.5,0.0026989]
[1768926736382,0.16928222,3022.5,3021.5,0.0026989]
[1768926736579,0.16559,3022.4,3021.5,0.0026989]
[1768926736780,0.16559,3022.3,3021.5,0.0026989]
[1768926737881,0.00370222,3022.5,3021.5,0.0026989]
[1768926738683,0.16928222,3022.5,3021.5,0.0026989]
[1768926739585,3.85378902,3022.5,3021.5,0.0026989]
[1768926741290,3.8500968,3022.3,3021.5,0.0026989]
[1768926741880,0.16559,3022.3,3021.5,0.0026989]
[1768926742084,0.00370222,3022.5,3021.5,0.0026989]
[1768926743592,3.68820902,3022.5,3021.5,0.0026989]
[1768926744493,0.00370222,3022.5,3021.5,0.0026989]
[1768926744789,0.16928222,3022.5,3021.5,0.0026989]
[1768926745592,0.00370222,3022.5,3021.5,0.0026989]
[1768926755107,3.6845068,3023.3,3021.5,3.41592805]
[1768926755307,3.6845068,3023.3,3021.5,3.58155805]
[1768926756108,3.68829788,3023.3,3021.5,3.58155805]
[1768926757105,0.00379108,3023.3,3021.6,3.41322915]
[1768926757312,0.00379108,3023.3,3022.1,3.41322915]
[1768926758613,0.00379108,3023.3,3022.2,0.16559]
[1768926759715,0.00379108,3023.3,3022.2,3.57881915]
[1768926764514,0.00379108,3023.3,3022.0,3.312]
[1768926764515,0.00496303,3023.6,3022.3,3.66350335]
[1768926765220,0.00496303,3023.6,3022.0,3.312]
[1768926765416,3.43412307,3023.6,3021.9,3.41614387]
[1768926765720,3.60390887,3023.6,3021.6,2.331]
[1768926766020,3.42916004,3023.4,3021.6,5.74714387]
[1768926766617,3.42916004,3023.4,3021.7,3.41614387]
[1768926766916,3.42916004,3023.4,3021.8,1.77504017]
[1768926767617,3.42916004,3023.4,3021.8,1.94066017]
[1768926767826,3.42916004,3023.4,3021.7,3.41614387]
[1768926768024,3.59469004,3023.4,3021.6,2.33]
[1768926768219,3.42916004,3022.9,3021.5,0.0026989]
[1768926768922,0.16555,3023.0,3021.5,0.0026989]
[1768926769226,3.42916004,3023.3,3021.5,0.0026989]
[1768926769531,3.42916004,3023.3,3021.5,3.41884277]
[1768926769720,3.42916004,3023.3,3021.8,1.77504017]
[1768926771525,3.42916004,3023.3,3021.8,5.19118404]
[1768926772227,3.42916004,3023.3,3021.7,0.16562]
[1768926773729,3.42916004,3023.3,3021.5,0.0026989]
[1768926774323,3.59470004,3023.3,3021.5,0.0026989]
[1768926774618,3.42916004,3023.1,3021.5,0.0026989]
[1768926774823,3.42916004,3022.9,3021.5,0.0026989]
[1768926775127,3.59472004,3022.9,3021.5,0.0026989]
[1768926775627,3.42916004,3022.7,3021.5,0.0026989]
[1768926777226,3.42916004,3022.5,3021.5,0.0026989]
[1768926777432,3.42916004,3022.5,3020.1,3.41614387]
[1768926777433,0.16558,3022.4,3020.3,3.311]
[1768926777631,3.42916004,3022.1,3020.2,1.77504017]
[1768926778427,3.42916004,3022.1,3020.2,1.77900385]
[1768926778627,0.16562,3021.8,3020.2,0.00396368]
[1768926778826,3.42916004,3021.7,3020.2,0.00396368]
[1768926779023,3.42916004,3021.2,3020.2,0.00396368]
[1768926779331,3.43295422,3021.2,3020.2,0.00396368]
[1768926779725,3.59860422,3021.2,3019.0,1.77504017]
[1768926779927,3.59860422,3021.2,3018.8,3.41614387]
[1768926779928,3.42916004,3021.0,3018.8,3.41614387]
[1768926780127,3.42916004,3020.4,3018.2,6.72814387]
[1768926780726,3.42916004,3020.4,3018.2,6.73068894]
[1768926780926,3.42916004,3020.4,3018.2,3.31454507]
[1768926781122,0.16569,3020.4,3018.5,1.77504017]
[1768926781328,3.42916004,3020.4,3018.5,5.19118404]
[1768926781533,3.42916004,3020.4,3018.6,3.41614387]
[1768926781736,3.42916004,3019.9,3018.2,0.00254507]
[1768926781932,1.77504017,3019.5,3016.9,6.72814387]
[1768926782125,3.42916004,3019.4,3017.3,1.77504017]
[1768926782525,1.77504017,3019.1,3016.9,5.08704017]
[1768926782826,3.42916004,3018.8,3016.5,5.19118404]
[1768926783131,3.42916004,3018.8,3016.5,5.1953118]
[1768926783132,3.42916004,3018.6,3016.5,5.1953118]
[1768926783330,3.42916004,3018.6,3016.6,3.41614387]
[1768926783723,0.00233964,3018.8,3016.5,1.77916793]
[1768926783724,3.42916004,3017.8,3016.5,0.00412776]
[1768926784833,3.42916004,3018.5,3016.5,0.00412776]
[1768926785331,1.77504017,3018.7,3016.5,0.00412776]
[1768926785332,3.42916004,3018.2,3016.5,0.00412776]
[1768926786235,3.42916004,3018.7,3016.8,1.77504017]
[1768926786440,0.00233964,3018.8,3017.6,1.77504017]
[1768926786832,3.42916004,3020.0,3018.0,1.77504017]
[1768926787032,3.42916004,3020.0,3018.4,1.77504017]
[1768926787232,3.42916004,3020.5,3019.2,1.77504017]
[1768926787934,3.43191117,3020.5,3019.2,1.7786044]
[1768926788129,3.43191117,3020.5,3019.2,0.00356423]
[1768926788437,3.42916004,3020.3,3018.2,3.41614387]
[1768926789030,3.59486004,3020.3,3018.2,3.41614387]
[1768926789435,3.59486004,3020.3,3018.2,3.41965467]
[1768926790743,3.42916004,3020.3,3018.4,1.77504017]
[1768926791043,0.00275113,3020.5,3018.8,1.77504017]
[1768926791945,3.43191117,3020.5,3018.8,1.77504017]
[1768926793744,3.43191117,3020.5,3018.4,1.77504017]
[1768926794156,3.43191117,3020.5,3018.4,1.94084017]
[1768926794451,3.43191117,3020.5,3018.8,1.77504017]
[1768926794748,3.43191117,3020.5,3018.5,3.41614387]
[1768926796247,3.43191117,3020.5,3018.4,1.94084017]
[1768926797145,1.77504017,3020.2,3018.4,0.1658]
[1768926797346,3.59697816,3020.3,3018.4,0.1658]
[1768926797545,3.59697816,3020.3,3018.6,0.16579]
[1768926797845,0.00275113,3020.5,3018.8,1.77504017]
[1768926798052,3.59972929,3020.5,3018.8,1.77504017]
[1768926798251,3.59972929,3020.5,3018.5,3.40404869]
[1768926798452,3.59972929,3020.5,3018.6,3.314]
[1768926798849,3.59972929,3020.5,3018.5,3.40404869]
[1768926799051,3.59697816,3020.3,3018.4,1.94084017]
[1768926799549,3.59697816,3020.3,3018.5,0.1658]
[1768926800347,3.59697816,3020.3,3018.6,0.16579]
[1768926803149,3.59972929,3020.5,3018.8,1.77504017]
[1768926803355,3.59972929,3020.5,3018.4,7.41304017]
[1768926803854,3.59972929,3020.5,3018.5,5.637]
[1768926804056,3.59972929,3020.5,3018.5,5.8028]
[1768926804454,3.76541929,3020.5,3018.5,0.1658]
[1768926805055,3.59972929,3020.5,3018.8,0.16578]
[1768926805251,0.00275113,3020.5,3019.0,0.16577]
[1768926805557,3.59972929,3020.5,3018.5,1.77504017]
[1768926805754,3.59972929,3020.5,3018.6,5.421]
[1768926805954,3.59972929,3020.5,3018.5,1.94084017]
[1768926806156,3.59972929,3020.5,3018.5,7.57784017]
[1768926806462,3.59972929,3020.5,3018.5,7.41204017]
[1768926806660,3.59972929,3020.5,3018.6,3.40404869]
[1768926806859,3.59972929,3020.5,3018.9,1.77504017]
[1768926807061,0.00275113,3020.5,3019.1,0.16576]
[1768926807353,3.59972929,3020.5,3019.1,0.16576]
[1768926807556,3.59972929,3020.5,3018.5,1.77504017]
[1768926807557,3.59697816,3020.4,3018.5,1.77504017]
[1768926807762,3.59697816,3020.4,3018.4,3.40404869]
[1768926807763,3.59697816,3019.8,3018.2,0.0035108]
[1768926809058,3.59697816,3020.3,3018.4,5.17908886]
[1768926809359,3.59697816,3020.3,3018.6,0.16579]
[1768926809560,3.76267816,3020.3,3018.4,1.77504017]
[1768926809964,3.59697816,3020.2,3018.2,0.1693208]
[1768926811757,5.37201833,3019.9,3018.2,0.0035108]
[1768926811963,3.59697816,3019.8,3018.2,0.0035108]
[1768926813560,3.59697816,3019.4,3018.2,0.0035108]
[1768926813761,1.77504017,3019.1,3017.3,3.315]
[1768926813961,3.59697816,3019.0,3017.3,3.315]
[1768926814463,3.76274816,3019.0,3016.8,1.77504017]
[1768926814759,3.76274816,3019.0,3016.8,1.77797393]
[1768926814965,3.76274816,3019.0,3016.9,0.16588]
[1768926815261,3.76274816,3019.0,3017.2,1.77504017]
[1768926815454,3.59697816,3019.0,3017.3,3.40404869]
[1768926815650,3.59697816,3019.0,3017.3,0.16586]
[1768926816151,3.59697816,3019.0,3017.4,0.16586]
[1768926817867,3.59697816,3019.0,3017.5,0.16585]
[1768926818165,3.59697816,3019.5,3017.8,0.16583]
[1768926818352,3.59697816,3019.5,3018.0,1.77504017]
[1768926819666,3.59697816,3019.5,3017.9,0.16583]
[1768926820566,3.59697816,3019.5,3018.0,1.77504017]
[1768926823163,0.16572,3019.9,3018.0,1.77504017]
[1768926823361,3.59697816,3020.2,3018.4,1.77504017]
[1768926823558,3.59697816,3020.2,3018.6,0.16579]
[1768926823761,3.59697816,3020.2,3018.8,1.77504017]
[1768926824568,0.00275113,3020.5,3018.8,1.77504017]
[1768926824864,0.00275113,3020.5,3019.1,1.77504017]
[1768926825069,0.00275113,3020.5,3019.1,1.7782033]
[1768926826765,0.00275113,3020.5,3019.2,0.16576]
[1768926828872,0.00275113,3020.5,3019.1,0.00316313]
[1768926829776,3.66728165,3020.5,3019.1,0.00316313]
[1768926831672,3.66453052,3020.1,3019.1,0.00316313]
[1768926832077,3.83024052,3020.1,3019.1,0.00316313]
[1768926832268,3.83024052,3020.1,3018.0,3.78521851]
[1768926832467,3.83024052,3020.1,3018.0,0.16582]
[1768926833072,3.66453052,3020.1,3018.0,3.61939851]
[1768926833277,3.66453052,3020.1,3018.3,0.16581]
[1768926833868,3.66453052,3020.1,3018.3,3.78520851]
[1768926834074,3.66453052,3020.1,3018.3,3.48081]
[1768926834381,3.66453052,3020.1,3018.4,0.1658]
[1768926835073,3.66453052,3020.1,3018.6,0.16579]
[1768926835280,3.66728165,3020.5,3018.6,0.16579]
[1768926835778,3.66728165,3020.5,3018.7,0.16578]
[1768926836079,3.66728165,3020.5,3018.8,3.78517851]
[1768926836980,3.66728165,3020.5,3018.8,0.16578]
[1768926839183,0.00275113,3020.5,3018.9,3.61939851]
[1768926839385,0.00275113,3020.5,3019.0,0.16577]
[1768926839577,0.00275113,3020.5,3019.1,5.39772603]
[1768926839784,0.00275113,3020.5,3019.2,3.61939851]
[1768926840081,0.00275113,3020.5,3019.4,0.16574]
[1768926840283,3.66453052,3021.0,3019.4,0.16574]
[1768926840576,3.66453052,3021.8,3019.7,3.78512851]
[1768926841276,3.66704483,3021.8,3019.6,1.77832752]
[1768926841487,3.66453052,3021.5,3019.2,3.78515851]
[1768926841675,0.00497157,3021.1,3019.2,3.78515851]
[1768926841876,3.66950209,3021.1,3019.3,3.315]
[1768926842283,3.66950209,3021.1,3019.3,3.48075]
[1768926842482,3.66950209,3021.1,3019.4,0.16575]
[1768926842884,3.66950209,3021.1,3019.3,3.314]
[1768926843085,3.66950209,3021.1,3019.2,3.61939851]
[1768926843378,3.66950209,3021.1,3019.2,3.78515851]
[1768926843683,3.83020052,3020.9,3019.1,3.314]
[1768926845789,3.83020052,3020.9,3018.8,7.09917851]
[1768926845981,3.66453052,3020.9,3018.9,3.78516851]
[1768926846184,3.66453052,3020.9,3019.3,0.16575]
[1768926846385,0.00497157,3021.1,3019.3,3.78514851]
[1768926846578,3.66950209,3021.1,3019.3,7.09914851]
[1768926846780,3.83515209,3021.1,3019.3,3.314]
[1768926847185,3.66950209,3021.1,3019.5,0.16574]
[1768926847389,3.66950209,3021.1,3019.6,0.16574]
[1768926848779,0.00497157,3021.1,3019.6,0.16574]
[1768926850386,0.00497157,3021.1,3019.7,0.16573]
[1768926850589,0.00497157,3021.1,3019.5,1.77832752]
[1768926850590,0.00497157,3021.1,3019.8,3.78511851]
[1768926852585,0.00251431,3021.8,3020.1,3.78509851]
[1768926852792,0.00251431,3021.8,3020.1,3.79007008]
[1768926852993,0.00251431,3021.8,3020.1,3.62437008]